fUSD/lending_fUSD_20251112
["ID","MTS","AMOUNT","RATE_DAILY","PERIOD"]
[393776797,1762975840261,-21148.95727803,0.00026,2]
[393776799,1762975840270,-213.97945674,0.00026,2]
[393776801,1762975840281,-161.06582473,0.00026,2]
[393776803,1762975840290,-4609.0,0.00026128,2]
[393776805,1762975840299,-12425.7495286,0.00026292,3]
[393776807,1762975840308,-12425.7495286,0.0002639,3]
[393776809,1762975840318,-27169.54666906,0.000264,2]
[393776811,1762975840327,-24851.4990571,0.00026571,3]
[393776813,1762975840337,-500.0,0.00026591,2]
[393776815,1762975840346,-500.0,0.00026591,2]
[393776817,1762975840355,-500.0,0.00026591,2]
[393776819,1762975840364,-500.0,0.00026591,2]
[393776821,1762975840374,-500.0,0.00026591,2]
[393776823,1762975840384,-500.0,0.00026591,2]
[393776825,1762975840394,-500.0,0.00026591,2]
[393776827,1762975840404,-500.0,0.00026591,2]
[393776830,1762975840415,-500.0,0.00026591,2]
[393776831,1762975840424,-500.0,0.00026591,2]
[393776834,1762975840434,-500.0,0.00026591,2]
[393776835,1762975840444,-500.0,0.00026591,2]
[393776838,1762975840454,-478.56668374,0.00026591,10]
[393776840,1762975840464,-54323.22712722,0.00026696,2]
[393776842,1762975840473,-552.89447495,0.00026749,2]
[393776844,1762975840482,-250.0,0.00027,2]
[393776845,1762975840491,-1021.7657068,0.00027,2]
[393776848,1762975840502,-530.0,0.00027,2]
[393776849,1762975840512,-179.43741248,0.00027315,2]
[393776852,1762975840522,-4062.92683639,0.0002739,2]
[393776853,1762975840531,-8026.35628533,0.0002739,2]
[393776855,1762975840546,-513.09,0.00027397,2]
[393776857,1762975840558,-738.01,0.000274,7]
[393776859,1762975840568,-330.39,0.000274,7]
[393776861,1762975840576,-198.73424594,0.000275,2]
[393776863,1762975840587,-542.89662444,0.000275,2]
[393776865,1762975840596,-1429.21700296,0.00027777,2]
[393776867,1762975840606,-3500.0,0.000279,10]
[393776869,1762975840616,-1613.0,0.00027953,2]
[393776872,1762975840627,-151.03,0.0002799,2]
[393776874,1762975840638,-70480.78498966,0.00028,2]
[393776876,1762975840647,-249785.0208026,0.00028,2]
[393776878,1762975840657,-50259.37813858,0.00028,2]
[393776880,1762975840665,-160.0,0.00028,2]
[393776882,1762975840674,-6453.0,0.00028646,2]
[393776884,1762975840684,-232.9395222,0.00028706,2]
[393776886,1762975840694,-54323.22712722,0.00028988,2]
[393776888,1762975840703,-1928.20846484,0.00029,2]
[393776890,1762975840714,-552.89447495,0.00029032,15]
[393776892,1762975840724,-411.79,0.00029381,2]
[393776894,1762975840743,-77922.21965356,0.000299,2]
[393776896,1762975840752,-234.27249477,0.0002999,2]
[393776898,1762975840761,-302.80827461,0.0003,2]
[393776900,1762975840771,-5650.73238875,0.0003,2]
[393776901,1762975840780,-4659.25568064,0.0003,2]
[393776902,1762975840789,-19626.70573325,0.0003,2]
[393776903,1762975840799,-1794.36088201,0.0003,2]
[393776904,1762975840808,-606.74422713,0.0003,2]
[393776905,1762975840818,-413.08048326,0.0003,2]
[393776906,1762975840828,-12570.97254113,0.0003,13]
[393776907,1762975840837,-160.95108458,0.0003,2]
[393776908,1762975840847,-1059.72401433,0.0003013,2]
[393776909,1762975840857,-184.00961881,0.0003013,30]
[393776910,1762975840867,-13677.53201784,0.0003013,2]
[393776911,1762975840876,-625.89616411,0.0003013,2]
[393776912,1762975840890,-199.17427369,0.0003013,2]
[393776914,1762975840900,-1208.82075572,0.0003013,2]
[393776916,1762975840911,-7634.2517548,0.0003013,2]
[393776918,1762975840920,-162.70330822,0.0003013,20]
[393776920,1762975840929,-183.6531986,0.0003015,10]
[393776922,1762975840939,-500.0,0.00030192,2]
[393776924,1762975840949,-478.56668374,0.00030312,2]
[393776926,1762975840959,-738.01,0.000304,7]
[393776928,1762975840969,-330.39,0.000304,30]
[393776930,1762975840978,-199.0,0.0003041,7]
[393776932,1762975840987,-884.0,0.00030497,2]
[393776934,1762975840996,-500.0,0.00030684,2]
[393776936,1762975841006,-88546.25,0.00030685,30]
[393776938,1762975841016,-253.818939,0.0003084,2]
[393776940,1762975841025,-161.72481843,0.00030857,2]
[393776942,1762975841035,-4274.00043756,0.00030888,60]
[393776944,1762975841044,-66494.79552558,0.0003095,2]
[393776946,1762975841054,-188.44,0.00030957,2]
[393776947,1762975841063,-199.0,0.00030958,8]
[393776949,1762975841073,-11788.06,0.00031,7]
[393776950,1762975841083,-54323.22712722,0.0003128,2]
[393776951,1762975841092,-552.89447495,0.00031316,15]
[393776952,1762975841101,-9035.0,0.00031407,3]
[393776953,1762975841110,-13699.54845264,0.0003143,4]
[393776954,1762975841120,-1685.17337839,0.000315,120]
[393776956,1762975841130,-199.0,0.00031506,9]
[393776957,1762975841139,-232.9395222,0.00031642,2]
[393776958,1762975841149,-1183.76,0.00031931,2]
[393776959,1762975841162,-1468.39086634,0.00032,120]
[393776960,1762975841172,-3074.84820603,0.00032,7]
[393776961,1762975841181,-4215.50828429,0.00032,2]
[393776962,1762975841191,-418.0,0.00032,120]
[393776963,1762975841201,-3915.8133183,0.00032,5]
[393776964,1762975841210,-199.0,0.00032054,10]
[393776965,1762975841219,-301.05745814,0.000322,2]
[393776966,1762975841229,-882.4138929,0.000323,2]
[393776967,1762975841239,-199.0,0.00032602,11]
[393776968,1762975841248,-319.98014903,0.00033,2]
[393776969,1762975841258,-1026.582,0.00033005,34]
[393776970,1762975841268,-199.0,0.0003315,12]
[393776971,1762975841277,-3307.9478206,0.000332,2]
[393776972,1762975841286,-738.01,0.000332,14]
[393776973,1762975841296,-330.39,0.000332,30]
[393776974,1762975841306,-11788.06,0.000332,14]
[393776975,1762975841316,-1669.39,0.000334,2]
[393776976,1762975841326,-411.79,0.00033535,2]
[393776977,1762975841335,-1000.0,0.00033559,7]
[393776978,1762975841345,-54323.22712722,0.00033572,2]
[393776979,1762975841355,-552.89447495,0.00033599,15]
[393776980,1762975841365,-199.0,0.00033698,13]
[393776981,1762975841374,-17001.6566214,0.00034,2]
[393776982,1762975841384,-335.0,0.00034094,2]
[393776983,1762975841394,-2751.14,0.00034106,2]
[393776984,1762975841404,-199.0,0.00034246,14]
[393776985,1762975841416,-8313.0,0.00034433,3]
[393776986,1762975841426,-156.203307,0.0003452,20]
[393776987,1762975841435,-701.475606,0.0003452,20]
[393776988,1762975841445,-701.475606,0.0003452,20]
[393776989,1762975841455,-153.743889,0.0003452,20]
[393776990,1762975841465,-701.475606,0.0003452,20]
[393776991,1762975841476,-323.288857,0.0003452,20]
[393776992,1762975841487,-323.288857,0.0003452,20]
[393776993,1762975841497,-323.288857,0.0003452,20]
[393776994,1762975841508,-909.465985,0.0003452,20]
[393776995,1762975841519,-909.465985,0.0003452,20]
[393776996,1762975841530,-909.465985,0.0003452,20]
[393776997,1762975841543,-232.9395222,0.00034577,2]
[393776998,1762975841556,-199.0,0.00034794,15]
[393776999,1762975841567,-181.67660261,0.000349,120]
[393777000,1762975841579,-168.0,0.00034963,2]
[393777001,1762975841590,-331.93547369,0.00035,14]
[393777002,1762975841600,-150.0,0.00035033,5]
[393777003,1762975841611,-1123.0,0.00035044,7]
[393777004,1762975841624,-1669.39,0.000351,2]
[393777005,1762975841634,-11788.06,0.000351,14]
[393777006,1762975841644,-1123.0,0.0003526,2]
[393777007,1762975841664,-199.0,0.00035342,16]
[393777008,1762975841675,-1123.0,0.00035361,7]
[393777009,1762975841686,-738.01,0.000354,14]
[393777010,1762975841698,-330.39,0.000354,30]
[393777011,1762975841709,-1123.0,0.00035519,2]
[393777012,1762975841718,-250.0,0.00035581,5]
[393777013,1762975841729,-999.0,0.00035616,120]
[393777014,1762975841739,-1000.0,0.00035616,5]
[393777015,1762975841749,-500.0,0.00035664,2]
[393777016,1762975841759,-1123.0,0.00035752,2]
[393777017,1762975841769,-168.0,0.00035789,2]
[393777018,1762975841778,-1123.0,0.00035804,2]
[393777019,1762975841788,-54323.22712722,0.00035864,2]
[393777020,1762975841798,-1123.0,0.00035868,2]
[393777021,1762975841807,-552.89447495,0.00035882,15]
[393777022,1762975841816,-199.0,0.0003589,17]
[393777023,1762975841826,-335.0,0.0003591,120]
[393777024,1762975841835,-335.0,0.00035914,7]
[393777025,1762975841844,-1123.0,0.00035953,2]
[393777026,1762975841854,-1274.62,0.00036,2]
[393777027,1762975841864,-8939.41841322,0.00036,120]
[393777028,1762975841873,-500.0,0.00036055,2]
[393777029,1762975841883,-607.39,0.00036055,2]
[393777030,1762975841892,-66538.33866894,0.000361,2]
[393777031,1762975841903,-350.0,0.00036129,5]
[393777032,1762975841917,-1123.0,0.0003617,2]
[393777033,1762975841926,-1669.39,0.000362,2]
[393777034,1762975841936,-395.25909271,0.00036258,30]
[393777035,1762975841945,-5000.0,0.00036286,2]
[393777036,1762975841956,-2604.43,0.00036383,2]
[393777037,1762975841967,-11788.06,0.000364,14]
[393777038,1762975841977,-199.0,0.00036438,18]
[393777039,1762975841987,-999.0,0.00036438,120]
[393777040,1762975841997,-4615.76,0.00036478,2]
[393777041,1762975842007,-1123.0,0.00036489,7]
[393777042,1762975842017,-1000.5618557,0.00036496,30]
[393777043,1762975842027,-1000.59037472,0.00036496,30]
[393777044,1762975842037,-1000.0,0.00036496,30]
[393777045,1762975842047,-1000.0,0.00036496,30]
[393777046,1762975842056,-2530.68,0.00036549,2]
[393777047,1762975842066,-25000.0,0.00036638,2]
[393777048,1762975842075,-450.0,0.00036677,5]
[393777049,1762975842084,-1274.62,0.0003672,2]
[393777050,1762975842093,-1588.66761652,0.000368,2]
[393777051,1762975842103,-5000.0,0.00036816,2]
[393777052,1762975842112,-25000.0,0.00036827,2]
[393777053,1762975842121,-1123.0,0.00036828,2]
[393777054,1762975842130,-18603.0,0.00036846,2]
[393777055,1762975842139,-4499.67,0.00036871,2]
[393777056,1762975842149,-1123.0,0.00036917,7]
[393777057,1762975842162,-199.0,0.00036986,19]
[393777058,1762975842172,-32031.1558659,0.00037,5]
[393777059,1762975842181,-550.0,0.00037225,5]
[393777060,1762975842191,-999.0,0.0003726,120]
[393777061,1762975842201,-1669.39,0.000373,2]
[393777062,1762975842211,-233.93239328,0.0003739,14]
[393777063,1762975842220,-1274.62,0.0003744,2]
[393777064,1762975842229,-232.9395222,0.00037513,2]
[393777065,1762975842239,-1123.0,0.00037525,2]
[393777066,1762975842248,-199.0,0.00037534,20]
[393777067,1762975842257,-1123.0,0.00037689,2]
[393777068,1762975842267,-183.17239134,0.00037773,5]
[393777069,1762975842276,-500.0,0.00037808,2]
[393777070,1762975842285,-200.0,0.00037945,2]
[393777071,1762975842295,-16426.22859991,0.0003797,2]
[393777072,1762975842304,-1852.42,0.00037976,2]
[393777073,1762975842313,-1501.95878155,0.00037999,3]
[393777074,1762975842323,-2000.0,0.00038,2]
[393777075,1762975842332,-2000.0,0.00038,2]
[393777076,1762975842342,-2000.0,0.00038,2]
[393777077,1762975842352,-2000.0,0.00038,2]
[393777078,1762975842362,-11788.06,0.00038,14]
[393777079,1762975842371,-157446.79114713,0.00038,2]
[393777080,1762975842380,-76497.02472379,0.00038,2]
[393777081,1762975842391,-159.40146688,0.00038003,2]
[393777082,1762975842400,-199.0,0.00038082,21]
[393777083,1762975842412,-274.53,0.00038153,2]
[393777084,1762975842421,-54323.22712722,0.00038156,2]
[393777085,1762975842430,-463.41812963,0.00038202,6]
[393777086,1762975842439,-156.0,0.00038538,2]
[393777087,1762975842451,-2000.0,0.000386,2]
[393777088,1762975842460,-1205.08355555,0.000386,120]
[393777089,1762975842469,-274.53,0.00038618,2]
[393777090,1762975842479,-162.35230314,0.0003863,22]
[393777091,1762975842488,-6064.69,0.00038678,2]
[393777092,1762975842497,-450.0,0.00038737,7]
[393777093,1762975842507,-450.0,0.00038866,7]
[393777094,1762975842517,-399.84661035,0.000389,31]
[393777095,1762975842526,-172.09582685,0.00039,2]
[393777096,1762975842536,-66245.5790937,0.00039,7]
[393777097,1762975842674,-39774.96080957,0.00039,7]
[393777098,1762975842684,-4905.04851535,0.00039,30]
[393777099,1762975842694,-8752.61221111,0.00039,4]
[393777100,1762975842704,-800.78310168,0.00039,2]
[393777101,1762975842713,-3692.45069671,0.00039,7]
[393777102,1762975842723,-546.97642166,0.00039,120]
[393777103,1762975842732,-200.9215,0.00039007,7]
[393777104,1762975842741,-274.53,0.00039083,2]
[393777105,1762975842750,-5996.33383086,0.0003918,120]
[393777106,1762975842759,-162.66019293,0.0003945,7]
[393777107,1762975842769,-362.15962283,0.00039548,11]
[393777108,1762975842778,-177.14,0.00039608,2]
[393777109,1762975842787,-150.0,0.00039608,2]
[393777111,1762975842796,-2414.5,0.00039608,2]
[393777112,1762975842805,-177.14,0.00039608,2]
[393777113,1762975842814,-177.14,0.00039608,2]
[393777114,1762975842824,-549.74,0.00039616,2]
[393777115,1762975842832,-303.34,0.00039616,2]
[393777117,1762975842842,-150.0,0.00039616,2]
[393777119,1762975842851,-832.38,0.00039616,2]
[393777120,1762975842860,-150.0,0.00039616,2]
[393777122,1762975842870,-150.0,0.00039616,2]
[393777125,1762975842879,-150.0,0.00039616,2]
[393777127,1762975842888,-549.74,0.00039616,2]
[393777136,1762975843068,-549.74,0.00039616,2]
[393777139,1762975843078,-150.0,0.00039616,2]
[393777142,1762975843087,-150.0,0.00039616,2]
[393777145,1762975843096,-549.74,0.00039616,2]
[393777146,1762975843105,-150.0,0.00039616,2]
[393777147,1762975843114,-150.0,0.00039616,2]
[393777148,1762975843123,-549.74,0.00039616,2]
[393777149,1762975843132,-850.99,0.00039616,2]
[393777150,1762975843140,-1731.56618599,0.00039668,2]
[393777151,1762975843149,-174.08,0.00039678,2]
[393777152,1762975843159,-342.59,0.00039678,2]
[393777153,1762975843168,-416.24,0.00039678,2]
[393777154,1762975843176,-549.74,0.00039678,2]
[393777155,1762975843185,-442.47,0.00039678,2]
[393777156,1762975843195,-150.0,0.00039678,2]
[393777157,1762975843203,-300.0,0.00039678,2]
[393777158,1762975843213,-358.55,0.00039678,2]
[393777159,1762975843223,-150.0,0.00039678,2]
[393777160,1762975843232,-2414.5,0.00039678,2]
[393777161,1762975843242,-1309.96036176,0.00039726,5]
[393777162,1762975843251,-16594.24011633,0.00039888,2]
[393777163,1762975843260,-738.01,0.0004,14]
[393777164,1762975843269,-330.39,0.0004,30]
[393777165,1762975843279,-23568.47778741,0.0004,2]
[393777166,1762975843288,-300.0,0.00040007,2]
[393777167,1762975843297,-300.0,0.0004002,2]
[393777168,1762975843307,-300.0,0.00040022,2]
[393777169,1762975843317,-300.0,0.00040044,2]
[393777170,1762975843326,-300.0,0.00040056,2]
[393777171,1762975843336,-300.0,0.00040078,2]
[393777172,1762975843346,-300.0,0.00040105,2]
[393777174,1762975843356,-300.0,0.00040111,2]
[393777176,1762975843365,-2500.0,0.00040114,14]
[393777178,1762975843374,-300.0,0.00040122,2]
[393777180,1762975843383,-2500.0,0.00040123,14]
[393777182,1762975843392,-2500.0,0.00040131,14]
[393777184,1762975843400,-2500.0,0.0004014,14]
[393777186,1762975843412,-300.0,0.00040141,2]
[393777188,1762975843420,-300.0,0.00040144,2]
[393777190,1762975843430,-300.0,0.00040144,2]
[393777192,1762975843439,-300.0,0.00040145,2]
[393777194,1762975843448,-2500.0,0.00040149,14]
[393777195,1762975843458,-300.0,0.00040151,2]
[393777197,1762975843468,-300.0,0.00040153,2]
[393777199,1762975843477,-2500.0,0.00040158,14]
[393777202,1762975843487,-300.0,0.00040158,2]
[393777204,1762975843496,-300.0,0.00040163,2]
[393777206,1762975843506,-2500.0,0.00040167,14]
[393777208,1762975843515,-2500.0,0.00040175,14]
[393777210,1762975843525,-300.0,0.00040181,2]
[393777212,1762975843534,-2500.0,0.00040184,14]
[393777214,1762975843547,-300.0,0.0004019,2]
[393777216,1762975843557,-2500.0,0.00040193,14]
[393777218,1762975843566,-371.53447534,0.00040193,5]
[393777219,1762975843575,-300.0,0.00040195,2]
[393777221,1762975843586,-300.0,0.00040196,2]
[393777223,1762975843596,-1626.0,0.000402,7]
[393777225,1762975843605,-11788.06,0.000402,14]
[393777227,1762975843614,-2500.0,0.00040202,14]
[393777229,1762975843626,-2500.0,0.00040211,14]
[393777231,1762975843635,-300.0,0.00040212,2]
[393777233,1762975843644,-2500.0,0.00040219,14]
[393777235,1762975843654,-2500.0,0.00040228,14]
[393777237,1762975843664,-300.0,0.00040232,2]
[393777238,1762975843674,-2500.0,0.00040237,14]
[393777239,1762975843683,-5800.0,0.00040239,14]
[393777240,1762975843692,-2500.0,0.00040246,14]
[393777241,1762975843701,-5800.0,0.00040248,14]
[393777242,1762975843711,-2500.0,0.00040255,14]
[393777243,1762975843720,-5800.0,0.00040256,14]
[393777244,1762975843729,-2500.0,0.00040263,14]
[393777245,1762975843738,-300.0,0.00040264,2]
[393777246,1762975843747,-5800.0,0.00040265,14]
[393777247,1762975843756,-5800.0,0.00040273,14]
[393777248,1762975843765,-3319.87399287,0.00040279,2]
[393777249,1762975843814,-563.94852852,0.00040279,2]
[393777250,1762975843829,-685.22243393,0.00040279,2]
[393777251,1762975844079,-1518.05,0.00040279,2]
[393777252,1762975844094,-15330.45761482,0.00040279,2]
[393777253,1762975844103,-300.0,0.00040289,2]
[393777254,1762975844112,-300.0,0.0004029,2]
[393777255,1762975844122,-300.0,0.0004029,2]
[393777256,1762975844131,-1009.0,0.000403,7]
[393777257,1762975844140,-300.0,0.000403,2]
[393777258,1762975844149,-300.0,0.00040303,2]
[393777259,1762975844161,-300.0,0.00040311,2]
[393777260,1762975844170,-786.93092999,0.00040324,2]
[393777261,1762975844179,-477.9213652,0.00040327,2]
[393777262,1762975844195,-500.0,0.00019989,2]
[393777263,1762975844204,-309.00956476,0.00040327,2]
[393777264,1762975844213,-786.93092996,0.0004033,2]
[393777265,1762975844223,-322.92889215,0.00040332,2]
[393777266,1762975844232,-786.93092996,0.00040333,2]
[393777267,1762975844241,-500.0,0.00040333,7]
[393777268,1762975844250,-500.0,0.00040333,20]
[393777269,1762975844259,-500.0,0.00040333,20]
[393777270,1762975844268,-500.0,0.00040333,20]
[393777271,1762975844277,-9393.664673,0.00040334,2]
[393777272,1762975844286,-3622.0,0.00040335,5]
[393777273,1762975844295,-786.93092996,0.00040336,2]
[393777274,1762975844304,-786.93092996,0.00040339,2]
[393777275,1762975844313,-786.93092996,0.00040342,2]
[393777276,1762975844322,-300.0,0.00040346,2]
[393777277,1762975844332,-300.0,0.00040369,2]
[393777278,1762975844341,-300.0,0.00040377,2]
[393777279,1762975844349,-202.78592358,0.00040378,120]
[393777280,1762975844359,-300.0,0.0004038,2]
[393777281,1762975844368,-300.0,0.00040383,2]
[393777282,1762975844377,-322.92889213,0.0004039,2]
[393777283,1762975844386,-5000.0,0.000404,120]
[393777284,1762975844395,-700.0,0.000404,14]
[393777285,1762975844404,-1550.0,0.000404,7]
[393777286,1762975844418,-300.0,0.00040414,2]
[393777287,1762975844428,-500.0,0.00040423,2]
[393777288,1762975844438,-607.39,0.00040423,2]
[393777289,1762975844447,-1597.0,0.00040428,2]
[393777290,1762975844458,-821.0,0.00040428,2]
[393777291,1762975844468,-813.0,0.00040428,2]
[393777292,1762975844479,-1274.0,0.00040428,2]
[393777293,1762975844488,-906.0,0.00040428,2]
[393777294,1762975844499,-1189.0,0.00040428,2]
[393777295,1762975844508,-6666.0,0.00040428,2]
[393777296,1762975844518,-608.0,0.00040428,2]
[393777297,1762975844527,-3427.0,0.00040428,2]
[393777298,1762975844537,-2143.0,0.00040428,2]
[393777299,1762975844550,-13854.0631145,0.00040431,2]
[393777300,1762975844559,-500.0,0.00040432,20]
[393777301,1762975844568,-500.0,0.00040432,20]
[393777302,1762975844578,-300.0,0.00040433,10]
[393777303,1762975844589,-23377.84301058,0.00040433,7]
[393777304,1762975844598,-500.0,0.00040433,2]
[393777305,1762975844607,-500.0,0.00040433,2]
[393777306,1762975844619,-500.0,0.00040433,2]
[393777307,1762975844628,-500.0,0.00040433,2]
[393777308,1762975844638,-500.0,0.00040433,2]
[393777309,1762975844647,-500.0,0.00040433,2]
[393777310,1762975844657,-500.0,0.00040433,2]
[393777311,1762975844668,-500.0,0.00040433,2]
[393777312,1762975844678,-500.0,0.00040433,2]
[393777313,1762975844687,-500.0,0.00040433,2]
[393777314,1762975844696,-500.0,0.00040433,2]
[393777315,1762975844706,-500.0,0.00040433,2]
[393777316,1762975844715,-500.0,0.00040433,2]
[393777317,1762975844725,-511.07,0.00040433,2]
[393777318,1762975844734,-607.39,0.00040433,2]
[393777319,1762975844744,-500.0,0.00040433,20]
[393777320,1762975844753,-500.0,0.00040433,20]
[393777321,1762975844763,-500.0,0.00040433,20]
[393777322,1762975844772,-500.0,0.00040433,20]
[393777323,1762975844781,-500.0,0.00040433,20]
[393777324,1762975844790,-207.61757181,0.00040433,120]
[393777325,1762975844799,-300.0,0.00040434,2]
[393777326,1762975844809,-5800.0,0.00040435,14]
[393777327,1762975844823,-4063.35347335,0.0004044,120]
[393777328,1762975844832,-607.39,0.00040441,2]
[393777329,1762975844841,-607.39,0.00040441,2]
[393777330,1762975844850,-607.39,0.00040441,2]
[393777331,1762975844859,-607.39,0.00040441,2]
[393777332,1762975844868,-607.39,0.00040441,2]
[393777333,1762975844877,-607.39,0.00040441,2]
[393777334,1762975844886,-607.39,0.00040441,2]
[393777335,1762975844895,-607.39,0.00040441,2]
[393777336,1762975844904,-607.39,0.00040441,2]
[393777337,1762975844914,-607.39,0.00040441,2]
[393777338,1762975844924,-607.39,0.00040441,2]
[393777339,1762975844933,-607.39,0.00040441,2]
[393777340,1762975844942,-607.39,0.00040441,2]
[393777341,1762975844955,-607.39,0.00040441,2]
[393777342,1762975844964,-607.39,0.00040441,2]
[393777343,1762975844974,-607.39,0.00040441,2]
[393777344,1762975844983,-607.39,0.00040441,2]
[393777345,1762975844992,-607.39,0.00040441,2]
[393777346,1762975845001,-607.60511611,0.00040441,2]
[393777347,1762975845010,-150.0,0.00040441,20]
[393777348,1762975845020,-151.0,0.00040442,120]
[393777349,1762975845029,-151.0,0.00040442,120]
[393777350,1762975845038,-263.395427,0.00040442,120]
[393777351,1762975845048,-151.0,0.00040442,120]
[393777352,1762975845058,-151.0,0.00040442,120]
[393777353,1762975845067,-151.0,0.00040442,120]
[393777354,1762975845076,-151.0,0.00040442,120]
[393777355,1762975845086,-151.0,0.00040442,120]
[393777356,1762975845096,-152.220424,0.00040442,120]
[393777357,1762975845106,-151.0,0.00040442,120]
[393777358,1762975845115,-151.0,0.00040442,120]
[393777359,1762975845125,-151.0,0.00040442,120]
[393777360,1762975845133,-151.0,0.00040442,120]
[393777361,1762975845142,-151.0,0.00040442,120]
[393777362,1762975845151,-151.0,0.00040442,120]
[393777363,1762975845161,-151.0,0.00040442,120]
[393777364,1762975845170,-151.0,0.00040442,60]
[393777365,1762975845179,-338.3169389,0.00040442,30]
[393777366,1762975845188,-151.0,0.00040442,120]
[393777367,1762975845197,-151.0,0.00040442,120]
[393777368,1762975845207,-159.884379,0.00040442,120]
[393777369,1762975845216,-151.0,0.00040442,120]
[393777370,1762975845226,-152.676191,0.00040442,120]
[393777371,1762975845235,-151.0,0.00040442,120]
[393777372,1762975845244,-151.0,0.00040442,120]
[393777373,1762975845253,-151.0,0.00040442,120]
[393777374,1762975845262,-151.0,0.00040442,120]
[393777375,1762975845271,-151.0,0.00040442,120]
[393777376,1762975845281,-151.0,0.00040442,120]
[393777377,1762975845290,-151.0,0.00040442,120]
[393777378,1762975845299,-251.120984,0.00040442,120]
[393777379,1762975845308,-151.932959,0.00040442,120]
[393777380,1762975845318,-151.0,0.00040442,120]
[393777381,1762975845327,-151.0,0.00040442,120]
[393777382,1762975845336,-151.0,0.00040442,120]
[393777383,1762975845345,-151.0,0.00040442,120]
[393777384,1762975845355,-151.0,0.00040442,120]
[393777385,1762975845364,-151.0,0.00040442,90]
[393777386,1762975845373,-151.0,0.00040442,90]
[393777387,1762975845383,-154.011465,0.00040442,90]
[393777388,1762975845392,-151.0,0.00040442,120]
[393777389,1762975845401,-151.0,0.00040442,120]
[393777390,1762975845412,-214.883276,0.00040442,120]
[393777391,1762975845422,-257.468904,0.00040442,21]
[393777392,1762975845431,-257.468904,0.00040442,21]
[393777393,1762975845441,-257.468904,0.00040442,21]
[393777394,1762975845450,-257.468904,0.00040442,21]
[393777395,1762975845460,-257.468904,0.00040442,21]
[393777396,1762975845469,-257.468904,0.00040442,21]
[393777397,1762975845478,-257.468904,0.00040442,21]
[393777398,1762975845488,-257.468904,0.00040442,21]
[393777399,1762975845497,-257.468904,0.00040442,21]
[393777400,1762975845507,-257.468904,0.00040442,21]
[393777401,1762975845517,-257.468904,0.00040442,21]
[393777402,1762975845525,-257.468904,0.00040442,21]
[393777403,1762975845534,-257.468904,0.00040442,21]
[393777404,1762975845546,-257.468904,0.00040442,21]
[393777405,1762975845556,-257.468904,0.00040442,21]
[393777406,1762975845566,-257.468904,0.00040442,21]
[393777407,1762975845575,-257.468904,0.00040442,21]
[393777408,1762975845587,-151.0,0.00040442,120]
[393777409,1762975845596,-257.468904,0.00040442,21]
[393777410,1762975845605,-151.0,0.00040442,120]
[393777411,1762975845614,-257.468904,0.00040442,21]
[393777412,1762975845626,-257.468901,0.00040442,21]
[393777413,1762975845635,-151.0,0.00040442,120]
[393777414,1762975845644,-151.0,0.00040442,120]
[393777415,1762975845653,-177.622712,0.00040442,120]
[393777416,1762975845663,-151.0,0.00040442,120]
[393777417,1762975845672,-151.0,0.00040442,120]
[393777418,1762975845681,-151.0,0.00040442,120]
[393777419,1762975845691,-154.090638,0.00040442,120]
[393777420,1762975845700,-151.0,0.00040442,120]